fUSD/lending_fUSD_20260505
["ID","MTS","AMOUNT","RATE_DAILY","PERIOD"]
[421609325,1777953041000,-1201.18,0.00042438,7]
[421609329,1777953041000,-500.0,0.00042438,7]
[421609330,1777953041000,-500.0,0.00042438,7]
[421609328,1777953041000,-500.0,0.00042438,7]
[421609331,1777953041000,-500.0,0.00042438,7]
[421609332,1777953041000,-500.0,0.00042438,7]
[421609294,1777953041000,-500.0,0.00042438,7]
[421609326,1777953041000,-1201.18,0.00042438,7]
[421609323,1777953041000,-1201.18,0.00042438,7]
[421609333,1777953041000,-500.0,0.00042438,7]
[421609319,1777953041000,-1201.18,0.00042438,7]
[421609317,1777953041000,-500.0,0.00042438,7]
[421609303,1777953041000,-500.0,0.00042438,7]
[421609311,1777953041000,-500.0,0.00042438,7]
[421609310,1777953041000,-500.0,0.00042438,7]
[421609309,1777953041000,-534.99111469,0.00042438,7]
[421609308,1777953041000,-500.0,0.00042438,7]
[421609298,1777953041000,-154.1078473,0.00042438,7]
[421609301,1777953041000,-500.0,0.00042438,7]
[421609313,1777953041000,-500.0,0.00042438,7]
[421609304,1777953041000,-500.0,0.00042438,7]
[421609316,1777953041000,-500.0,0.00042438,7]
[421609292,1777953041000,-564.44538157,0.00042438,7]
[421609312,1777953041000,-500.0,0.00042438,7]
[421609306,1777953041000,-500.0,0.00042438,7]
[421609314,1777953041000,-500.0,0.00042438,7]
[421609367,1777953042000,-500.0,0.00042438,2]
[421609375,1777953042000,-500.0,0.00042438,7]
[421609365,1777953042000,-325.61127052,0.00042438,7]
[421609373,1777953042000,-500.0,0.00042438,2]
[421609369,1777953042000,-500.0,0.00042438,2]
[421609374,1777953042000,-500.0,0.00042438,7]
[421609372,1777953042000,-500.0,0.00042438,2]
[421609370,1777953042000,-500.0,0.00042438,2]
[421609376,1777953042000,-500.0,0.00042438,7]
[421609386,1777953042000,-500.0,0.00042438,7]
[421609379,1777953042000,-500.0,0.00042438,7]
[421609387,1777953042000,-500.0,0.00042438,7]
[421609371,1777953042000,-500.0,0.00042438,2]
[421609382,1777953042000,-433.72142261,0.00042438,7]
[421609378,1777953042000,-500.0,0.00042438,7]
[421609380,1777953042000,-500.0,0.00042438,7]
[421609383,1777953042000,-345.90030198,0.00042438,7]
[421609381,1777953042000,-500.0,0.00042438,7]
[421609384,1777953042000,-500.0,0.00042438,7]
[421609385,1777953042000,-500.0,0.00042438,7]
[421609388,1777953042000,-500.0,0.00042438,7]
[421609392,1777953042000,-500.0,0.00042438,7]
[421609389,1777953042000,-500.0,0.00042438,7]
[421609390,1777953042000,-500.0,0.00042438,7]
[421609391,1777953042000,-500.0,0.00042438,7]
[421609399,1777953042000,-500.0,0.00042438,7]
[421609394,1777953042000,-500.0,0.00042438,7]
[421609368,1777953042000,-500.0,0.00042438,2]
[421609377,1777953042000,-500.0,0.00042438,7]
[421609366,1777953042000,-500.0,0.00042438,2]
[421609344,1777953042000,-500.0,0.00042438,2]
[421609353,1777953042000,-500.0,0.00042438,7]
[421609335,1777953042000,-500.0,0.00042438,7]
[421609334,1777953042000,-500.0,0.00042438,7]
[421609338,1777953042000,-500.0,0.00042438,7]
[421609336,1777953042000,-295.44404529,0.00042438,7]
[421609342,1777953042000,-538.03473045,0.00042438,7]
[421609347,1777953042000,-500.0,0.00042438,2]
[421609340,1777953042000,-500.0,0.00042438,7]
[421609348,1777953042000,-283.95443166,0.00042438,2]
[421609341,1777953042000,-500.0,0.00042438,7]
[421609337,1777953042000,-500.0,0.00042438,7]
[421609339,1777953042000,-508.63048737,0.00042438,7]
[421609345,1777953042000,-500.0,0.00042438,2]
[421609349,1777953042000,-197.464237,0.00042438,7]
[421609343,1777953042000,-500.0,0.00042438,2]
[421609346,1777953042000,-500.0,0.00042438,2]
[421609351,1777953042000,-500.0,0.00042438,7]
[421609362,1777953042000,-299.67602487,0.00042438,7]
[421609400,1777953042000,-500.0,0.00042438,7]
[421609363,1777953042000,-500.0,0.00042438,7]
[421609361,1777953042000,-500.0,0.00042438,7]
[421609350,1777953042000,-500.0,0.00042438,7]
[421609352,1777953042000,-516.47398884,0.00042438,7]
[421609354,1777953042000,-151.20747261,0.00042438,7]
[421609356,1777953042000,-185.312164,0.00042438,120]
[421609355,1777953042000,-634.36008093,0.00042438,5]
[421609357,1777953042000,-500.0,0.00042438,7]
[421609359,1777953042000,-500.0,0.00042438,7]
[421609360,1777953042000,-485.79756341,0.00042438,7]
[421609358,1777953042000,-500.0,0.00042438,7]
[421609364,1777953042000,-325.91167521,0.00042438,7]
[421609402,1777953042000,-500.0,0.00042438,7]
[421609458,1777953042000,-526.1204932,0.00042438,7]
[421609398,1777953042000,-500.0,0.00042438,7]
[421609453,1777953042000,-500.0,0.00042438,7]
[421609454,1777953042000,-500.0,0.00042438,7]
[421609440,1777953042000,-500.0,0.00042438,7]
[421609441,1777953042000,-500.0,0.00042438,7]
[421609438,1777953042000,-500.0,0.00042438,7]
[421609448,1777953042000,-500.0,0.00042438,7]
[421609445,1777953042000,-500.0,0.00042438,7]
[421609443,1777953042000,-500.0,0.00042438,7]
[421609447,1777953042000,-500.0,0.00042438,7]
[421609457,1777953042000,-500.0,0.00042438,7]
[421609455,1777953042000,-500.0,0.00042438,7]
[421609456,1777953042000,-500.0,0.00042438,7]
[421609466,1777953042000,-500.0,0.00042438,7]
[421609452,1777953042000,-500.0,0.00042438,7]
[421609464,1777953042000,-500.0,0.00042438,7]
[421609461,1777953042000,-500.0,0.00042438,7]
[421609460,1777953042000,-500.0,0.00042438,7]
[421609459,1777953042000,-500.0,0.00042438,7]
[421609463,1777953042000,-153.72696424,0.00042438,7]
[421609465,1777953042000,-500.0,0.00042438,7]
[421609468,1777953042000,-563.28894036,0.00042438,7]
[421609467,1777953042000,-500.0,0.00042438,7]
[421609473,1777953042000,-500.0,0.00042438,7]
[421609475,1777953042000,-500.0,0.00042438,7]
[421609471,1777953042000,-500.0,0.00042438,7]
[421609469,1777953042000,-500.0,0.00042438,7]
[421609470,1777953042000,-247.20557105,0.00042438,7]
[421609472,1777953042000,-500.0,0.00042438,7]
[421609462,1777953042000,-500.0,0.00042438,7]
[421609451,1777953042000,-500.0,0.00042438,7]
[421609474,1777953042000,-500.0,0.00042438,7]
[421609449,1777953042000,-500.0,0.00042438,7]
[421609450,1777953042000,-500.0,0.00042438,7]
[421609396,1777953042000,-500.0,0.00042438,7]
[421609397,1777953042000,-500.0,0.00042438,7]
[421609403,1777953042000,-575.92336569,0.00042438,7]
[421609404,1777953042000,-500.0,0.00042438,7]
[421609414,1777953042000,-500.0,0.00042438,7]
[421609419,1777953042000,-500.0,0.00042438,7]
[421609420,1777953042000,-500.0,0.00042438,7]
[421609416,1777953042000,-500.0,0.00042438,7]
[421609418,1777953042000,-500.0,0.00042438,7]
[421609421,1777953042000,-500.0,0.00042438,7]
[421609411,1777953042000,-500.0,0.00042438,7]
[421609409,1777953042000,-171.67959712,0.00042438,7]
[421609406,1777953042000,-500.0,0.00042438,7]
[421609413,1777953042000,-500.0,0.00042438,7]
[421609401,1777953042000,-500.0,0.00042438,7]
[421609423,1777953042000,-500.0,0.00042438,7]
[421609422,1777953042000,-500.0,0.00042438,7]
[421609437,1777953042000,-500.0,0.00042438,7]
[421609428,1777953042000,-500.0,0.00042438,7]
[421609436,1777953042000,-500.0,0.00042438,7]
[421609434,1777953042000,-500.0,0.00042438,7]
[421609431,1777953042000,-500.0,0.00042438,7]
[421609432,1777953042000,-500.0,0.00042438,7]
[421609429,1777953042000,-500.0,0.00042438,7]
[421609425,1777953042000,-500.0,0.00042438,7]
[421609430,1777953042000,-500.0,0.00042438,7]
[421609426,1777953042000,-500.0,0.00042438,7]
[421609439,1777953042000,-500.0,0.00042438,7]
[421609424,1777953042000,-500.0,0.00042438,7]
[421609427,1777953042000,-500.0,0.00042438,7]
[421609513,1777953043000,-1251.02,0.00042438,7]
[421609506,1777953043000,-500.0,0.00042438,7]
[421609514,1777953043000,-1251.02,0.00042438,7]
[421609509,1777953043000,-481.21172977,0.00042438,7]
[421609512,1777953043000,-1251.02,0.00042438,7]
[421609510,1777953043000,-340.60220378,0.00042438,7]
[421609511,1777953043000,-554.71715675,0.00042438,7]
[421609504,1777953043000,-500.0,0.00042438,7]
[421609515,1777953043000,-44.25159362,0.00042438,7]
[421609517,1777953043000,-1206.76840638,0.00042438,7]
[421609507,1777953043000,-500.0,0.00042438,7]
[421609523,1777953043000,-366.46373674,0.00042438,7]
[421609516,1777953043000,-848.13,0.00042428,10]
[421609520,1777953043000,-1056.53171839,0.00042438,7]
[421609518,1777953043000,-1251.02,0.00042438,7]
[421609521,1777953043000,-1251.02,0.00042438,7]
[421609508,1777953043000,-500.0,0.00042438,7]
[421609522,1777953043000,-1251.02,0.00042438,7]
[421609534,1777953043000,-500.0,0.00042438,7]
[421609532,1777953043000,-500.0,0.00042438,7]
[421609528,1777953043000,-500.0,0.00042438,7]
[421609527,1777953043000,-500.0,0.00042438,7]
[421609529,1777953043000,-500.0,0.00042438,7]
[421609531,1777953043000,-500.0,0.00042438,7]
[421609519,1777953043000,-194.48828161,0.00042438,7]
[421609505,1777953043000,-500.0,0.00042438,7]
[421609494,1777953043000,-224.41643201,0.00042438,7]
[421609501,1777953043000,-500.0,0.00042438,7]
[421609530,1777953043000,-500.0,0.00042438,7]
[421609478,1777953043000,-500.0,0.00042438,7]
[421609479,1777953043000,-500.0,0.00042438,7]
[421609476,1777953043000,-500.0,0.00042438,7]
[421609477,1777953043000,-636.7793519,0.00042438,7]
[421609480,1777953043000,-500.0,0.00042438,7]
[421609483,1777953043000,-828.92,0.00042438,7]
[421609482,1777953043000,-828.92,0.00042438,7]
[421609484,1777953043000,-828.92,0.00042438,7]
[421609485,1777953043000,-828.92,0.00042438,7]
[421609486,1777953043000,-828.92,0.00042438,7]
[421609488,1777953043000,-828.92,0.00042438,7]
[421609487,1777953043000,-828.92,0.00042438,7]
[421609490,1777953043000,-500.0,0.00042438,7]
[421609481,1777953043000,-482.56987887,0.00042438,7]
[421609492,1777953043000,-500.0,0.00042438,7]
[421609502,1777953043000,-500.0,0.00042438,7]
[421609493,1777953043000,-500.0,0.00042438,7]
[421609495,1777953043000,-500.0,0.00042438,7]
[421609491,1777953043000,-500.0,0.00042438,7]
[421609499,1777953043000,-500.0,0.00042438,7]
[421609500,1777953043000,-500.0,0.00042438,7]
[421609497,1777953043000,-500.0,0.00042438,7]
[421609498,1777953043000,-500.0,0.00042438,7]
[421609496,1777953043000,-236.54501478,0.00042438,7]
[421609503,1777953043000,-500.0,0.00042438,7]
[421609489,1777953043000,-828.92,0.00042438,7]
[421609524,1777953043000,-500.0,0.00042438,7]
[421609533,1777953043000,-500.0,0.00042438,7]
[421609566,1777953043000,-425.01086262,0.00042438,7]
[421609568,1777953043000,-150.00000001,0.00042438,120]
[421609569,1777953043000,-150.0,0.00042438,30]
[421609562,1777953043000,-500.0,0.00042438,7]
[421609565,1777953043000,-500.0,0.00042438,7]
[421609567,1777953043000,-639.0,0.00042438,60]
[421609572,1777953043000,-150.00000002,0.00042438,30]
[421609582,1777953043000,-1000.0,0.00042441,15]
[421609571,1777953043000,-150.55122366,0.00042438,30]
[421609575,1777953043000,-1243.57659104,0.0004244,30]
[421609577,1777953043000,-1000.0,0.00042441,15]
[421609574,1777953043000,-1289.58892491,0.00042439,30]
[421609579,1777953043000,-1000.0,0.00042441,15]
[421609576,1777953043000,-1000.0,0.00042441,15]
[421609580,1777953043000,-1000.0,0.00042441,15]
[421609578,1777953043000,-1000.0,0.00042441,15]
[421609581,1777953043000,-1000.0,0.00042441,15]
[421609584,1777953043000,-500.0,0.00042447,7]
[421609586,1777953043000,-500.0,0.00042447,7]
[421609588,1777953043000,-500.0,0.00042447,7]
[421609583,1777953043000,-1036.52476989,0.00042441,15]
[421609587,1777953043000,-500.0,0.00042447,7]
[421609585,1777953043000,-500.0,0.00042447,7]
[421609589,1777953043000,-2166.75,0.00042447,7]
[421609537,1777953043000,-500.0,0.00042438,7]
[421609564,1777953043000,-256.51030757,0.00042438,7]
[421609559,1777953043000,-500.0,0.00042438,7]
[421609573,1777953043000,-228.99736284,0.00042438,30]
[421609560,1777953043000,-500.0,0.00042438,7]
[421609525,1777953043000,-500.0,0.00042438,7]
[421609570,1777953043000,-150.0,0.00042438,30]
[421609535,1777953043000,-500.0,0.00042438,7]
[421609526,1777953043000,-500.0,0.00042438,7]
[421609536,1777953043000,-619.53531895,0.00042438,7]
[421609538,1777953043000,-500.0,0.00042438,7]
[421609539,1777953043000,-500.0,0.00042438,7]
[421609540,1777953043000,-500.0,0.00042438,7]
[421609549,1777953043000,-500.0,0.00042438,7]
[421609541,1777953043000,-500.0,0.00042438,7]
[421609543,1777953043000,-564.88881943,0.00042438,7]
[421609544,1777953043000,-500.0,0.00042438,7]
[421609548,1777953043000,-500.0,0.00042438,7]
[421609542,1777953043000,-500.0,0.00042438,7]
[421609546,1777953043000,-500.0,0.00042438,7]
[421609557,1777953043000,-500.0,0.00042438,7]
[421609558,1777953043000,-500.0,0.00042438,7]
[421609555,1777953043000,-500.0,0.00042438,7]
[421609554,1777953043000,-500.0,0.00042438,7]
[421609553,1777953043000,-500.0,0.00042438,7]
[421609556,1777953043000,-500.0,0.00042438,7]
[421609552,1777953043000,-500.0,0.00042438,7]
[421609551,1777953043000,-500.0,0.00042438,7]
[421609547,1777953043000,-500.0,0.00042438,7]
[421609545,1777953043000,-362.45714974,0.00042438,7]
[421609550,1777953043000,-500.0,0.00042438,7]
[421609628,1777953044000,-2166.75,0.00042449,7]
[421609630,1777953044000,-2166.75,0.00042449,7]
[421609629,1777953044000,-2166.75,0.00042449,7]
[421609632,1777953044000,-2166.75,0.00042449,7]
[421609631,1777953044000,-2166.75,0.00042449,7]
[421609626,1777953044000,-2166.75,0.00042449,7]
[421609627,1777953044000,-2166.75,0.00042449,7]
[421609624,1777953044000,-2166.75,0.00042449,7]
[421609623,1777953044000,-2166.75,0.00042449,7]
[421609625,1777953044000,-2166.75,0.00042449,7]
[421609634,1777953044000,-2166.75,0.00042449,7]
[421609622,1777953044000,-2166.75,0.00042449,7]
[421609642,1777953044000,-636.99885327,0.00042449,7]
[421609654,1777953044000,-172.46484815,0.0004245,30]
[421609643,1777953044000,-500.0,0.00042449,7]
[421609635,1777953044000,-2166.90872094,0.00042449,7]
[421609633,1777953044000,-2166.75,0.00042449,7]
[421609636,1777953044000,-500.0,0.00042449,7]
[421609641,1777953044000,-500.0,0.00042449,7]
[421609638,1777953044000,-500.0,0.00042449,7]
[421609640,1777953044000,-500.0,0.00042449,7]
[421609637,1777953044000,-500.0,0.00042449,7]
[421609639,1777953044000,-278.77825663,0.00042449,7]
[421609645,1777953044000,-500.0,0.00042449,7]
[421609650,1777953044000,-366.0,0.00042449,120]
[421609651,1777953044000,-3226.29548724,0.00042449,120]
[421609621,1777953044000,-552.4864553,0.00042449,7]
[421609644,1777953044000,-500.0,0.00042449,7]
[421609618,1777953044000,-328.37985748,0.00042449,7]
[421609590,1777953044000,-500.0,0.00042447,7]
[421609613,1777953044000,-566.3,0.00042449,7]
[421609595,1777953044000,-500.0,0.00042447,7]
[421609594,1777953044000,-1201.18,0.00042447,7]
[421609592,1777953044000,-505.03150785,0.00042447,7]
[421609593,1777953044000,-500.0,0.00042447,7]
[421609591,1777953044000,-500.0,0.00042447,7]
[421609648,1777953044000,-502.37252065,0.00042449,7]
[421609596,1777953044000,-500.0,0.00042447,2]
[421609601,1777953044000,-500.0,0.00042447,7]
[421609600,1777953044000,-500.0,0.00042447,7]
[421609605,1777953044000,-500.0,0.00042447,7]
[421609606,1777953044000,-500.0,0.00042448,7]
[421609597,1777953044000,-500.0,0.00042447,7]
[421609599,1777953044000,-500.0,0.00042447,7]
[421609614,1777953044000,-500.0,0.00042449,7]
[421609598,1777953044000,-500.0,0.00042447,7]
[421609602,1777953044000,-500.0,0.00042447,7]
[421609607,1777953044000,-500.0,0.00042449,7]
[421609604,1777953044000,-1251.02,0.00042447,7]
[421609609,1777953044000,-500.0,0.00042449,7]
[421609615,1777953044000,-500.0,0.00042449,7]
[421609617,1777953044000,-507.09345854,0.00042449,7]
[421609611,1777953044000,-500.0,0.00042449,7]
[421609610,1777953044000,-500.0,0.00042449,7]
[421609619,1777953044000,-500.0,0.00042449,7]
[421609608,1777953044000,-500.0,0.00042449,7]
[421609612,1777953044000,-500.0,0.00042449,7]
[421609620,1777953044000,-500.0,0.00042449,7]
[421609616,1777953044000,-500.0,0.00042449,7]
[421609603,1777953044000,-828.92,0.00042447,7]
[421609653,1777953044000,-172.46484815,0.0004245,30]
[421609705,1777953044000,-1251.02,0.0004245,7]
[421609652,1777953044000,-169.10728153,0.00042449,120]
[421609683,1777953044000,-828.92,0.0004245,7]
[421609687,1777953044000,-828.92,0.0004245,7]
[421609690,1777953044000,-828.92,0.0004245,7]
[421609692,1777953044000,-828.92,0.0004245,7]
[421609686,1777953044000,-828.92,0.0004245,7]
[421609689,1777953044000,-828.92,0.0004245,7]
[421609685,1777953044000,-828.92,0.0004245,7]
[421609691,1777953044000,-828.92,0.0004245,7]
[421609688,1777953044000,-828.92,0.0004245,7]
[421609699,1777953044000,-1251.02,0.0004245,7]
[421609695,1777953044000,-1251.02,0.0004245,7]
[421609697,1777953044000,-1251.02,0.0004245,7]
[421609698,1777953044000,-1251.02,0.0004245,7]
[421609694,1777953044000,-829.08,0.0004245,7]
[421609700,1777953044000,-1251.02,0.0004245,7]
[421609703,1777953044000,-1251.02,0.0004245,7]
[421609704,1777953044000,-1251.02,0.0004245,7]
[421609706,1777953044000,-1251.02,0.0004245,7]
[421609707,1777953044000,-1251.02,0.0004245,7]
[421609701,1777953044000,-1251.02,0.0004245,7]
[421609702,1777953044000,-1251.02,0.0004245,7]
[421609708,1777953044000,-1251.02,0.0004245,7]
[421609709,1777953044000,-1251.11157083,0.0004245,7]
[421609711,1777953044000,-500.0,0.0004245,7]
[421609710,1777953044000,-500.0,0.0004245,7]
[421609712,1777953044000,-500.0,0.0004245,7]
[421609713,1777953044000,-500.0,0.0004245,7]
[421609647,1777953044000,-500.0,0.00042449,7]
[421609696,1777953044000,-1251.02,0.0004245,7]
[421609684,1777953044000,-828.92,0.0004245,7]
[421609693,1777953044000,-828.92,0.0004245,7]
[421609680,1777953044000,-828.92,0.0004245,7]
[421609649,1777953044000,-250.0,0.00042449,120]
[421609655,1777953044000,-1201.18,0.0004245,7]
[421609656,1777953044000,-1201.18,0.0004245,7]
[421609657,1777953044000,-1201.18,0.0004245,7]
[421609646,1777953044000,-500.0,0.00042449,7]
[421609659,1777953044000,-1201.18,0.0004245,7]
[421609663,1777953044000,-1201.18,0.0004245,7]
[421609658,1777953044000,-1201.18,0.0004245,7]
[421609682,1777953044000,-828.92,0.0004245,7]
[421609665,1777953044000,-1201.18,0.0004245,7]
[421609662,1777953044000,-1201.18,0.0004245,7]
[421609661,1777953044000,-1201.18,0.0004245,7]
[421609668,1777953044000,-1201.18,0.0004245,7]
[421609667,1777953044000,-1201.18,0.0004245,7]
[421609664,1777953044000,-1201.18,0.0004245,7]
[421609666,1777953044000,-1201.18,0.0004245,7]
[421609660,1777953044000,-1201.18,0.0004245,7]
[421609678,1777953044000,-500.0,0.0004245,7]
[421609681,1777953044000,-828.92,0.0004245,7]
[421609677,1777953044000,-500.0,0.0004245,7]
[421609674,1777953044000,-500.0,0.0004245,2]
[421609676,1777953044000,-554.8,0.0004245,2]
[421609679,1777953044000,-500.0,0.0004245,7]
[421609673,1777953044000,-500.0,0.0004245,2]
[421609671,1777953044000,-500.0,0.0004245,2]
[421609672,1777953044000,-500.0,0.0004245,2]
[421609670,1777953044000,-500.0,0.0004245,2]
[421609669,1777953044000,-1201.21,0.0004245,7]
[421609675,1777953044000,-500.0,0.0004245,2]
[421609727,1777953045000,-160.0,0.00042451,120]
[421609725,1777953045000,-159.0,0.00042451,120]
[421609722,1777953045000,-211.0,0.00042451,120]
[421609723,1777953045000,-163.0,0.00042451,120]
[421609716,1777953045000,-373.59312992,0.0004245,7]
[421609714,1777953045000,-500.0,0.0004245,7]
[421609718,1777953045000,-161.0,0.00042451,120]
[421609720,1777953045000,-158.0,0.00042451,120]
[421609721,1777953045000,-160.0,0.00042451,120]
[421609719,1777953045000,-158.0,0.00042451,120]
[421609726,1777953045000,-162.0,0.00042451,120]
[421609717,1777953045000,-185.0,0.00042451,120]
[421609729,1777953045000,-567.39903905,0.00042454,7]
[421609715,1777953045000,-500.0,0.0004245,7]
[421609728,1777953045000,-406.79756789,0.00042454,7]
[421609724,1777953045000,-166.0,0.00042451,120]
[421609749,1777953045000,-3173331.68589871,0.00042455,30]
[421609746,1777953045000,-75051.69,0.00041451,2]
[421609747,1777953045000,-164.16443093,0.00042355,120]
[421609743,1777953045000,-391.24125144,0.0003949,15]
[421609745,1777953045000,-945.28844426,0.00041183,2]
[421609748,1777953045000,-463.0,0.0004245,60]
[421609742,1777953045000,-190.75,0.00038728,120]
[421609731,1777953045000,-1536537.88316425,0.00042455,30]
[421609740,1777953045000,-505.0,0.00027137,2]
[421609741,1777953045000,-622.22848781,0.000318,2]
[421609730,1777953045000,-2533225.94910851,0.00042455,30]
[421609744,1777953045000,-381.52,0.00040044,120]
[421609754,1777953046000,-23539.00641194,0.00042455,30]
[421609752,1777953046000,-286.14,0.00041403,120]
[421609753,1777953046000,-188.51435828,0.00042455,30]
[421609750,1777953046000,-8322.94190742,0.00042455,30]
[421609751,1777953046000,-2262.58629689,0.00042455,30]
[421609755,1777953063000,300.0,0.00024648,120]
[421609773,1777954231000,-275.89,0.000132,2]
[421609774,1777954231000,-323.0,0.000132,2]
[421609775,1777954231000,-250.0,0.00014,2]
[421609780,1777954231000,-2771.2,0.00020951,2]
[421609776,1777954231000,-302.73457893,0.0001452,2]
[421609778,1777954231000,-164.1778,0.000175,2]
[421609779,1777954231000,-161.68,0.000183,2]
[421609777,1777954231000,-250.0,0.0001452,2]
[421609815,1777954232000,-500.0,0.00037108,15]
[421609817,1777954232000,-500.0,0.00037108,15]
[421609809,1777954232000,-1982.16535358,0.00037009,2]
[421609810,1777954232000,-204.61,0.00037059,2]
[421609816,1777954232000,-500.0,0.00037108,15]
[421609823,1777954232000,-179.0,0.00037109,5]
[421609819,1777954232000,-500.0,0.00037108,15]
[421609821,1777954232000,-179.0,0.00037109,5]
[421609825,1777954232000,-158.42,0.00037241,2]
[421609814,1777954232000,-500.0,0.00037108,15]
[421609824,1777954232000,-555.0,0.00037208,2]
[421609828,1777954232000,-1001.85202506,0.00037828,2]
[421609836,1777954232000,-229.09574755,0.0003817,7]
[421609826,1777954232000,-552.0,0.00037345,30]
[421609827,1777954232000,-2462.0,0.00037409,2]
[421609830,1777954232000,-1049.0,0.00038,2]
[421609831,1777954232000,-200.0,0.00038029,2]
[421609829,1777954232000,-162.18416275,0.00037929,2]
[421609832,1777954232000,-1433.38,0.00038034,30]
[421609834,1777954232000,-150.0,0.0003817,7]
[421609835,1777954232000,-150.0,0.0003817,7]
[421609838,1777954232000,-150.0,0.0003817,7]
[421609837,1777954232000,-150.56311892,0.0003817,7]
[421609840,1777954232000,-150.0,0.0003817,7]
[421609811,1777954232000,-500.0,0.00037108,15]
[421609841,1777954232000,-150.0,0.0003817,7]
[421609820,1777954232000,-131427.4986267,0.00037109,2]
[421609818,1777954232000,-500.0,0.00037108,15]
[421609793,1777954232000,-150.99,0.00031796,2]
[421609812,1777954232000,-500.0,0.00037108,15]
[421609839,1777954232000,-150.0,0.0003817,7]
[421609781,1777954232000,-162.18416276,0.00022307,2]
[421609782,1777954232000,-1200.0,0.00022561,2]
[421609783,1777954232000,-2388.96,0.00022562,2]
[421609784,1777954232000,-327.0,0.00024617,2]
[421609785,1777954232000,-372.0,0.00031795,3]
[421609786,1777954232000,-300.0,0.00031795,3]
[421609789,1777954232000,-4787.79,0.00031796,2]
[421609788,1777954232000,-1399.0,0.00031796,3]
[421609792,1777954232000,-9999.99,0.00031796,2]
[421609790,1777954232000,-19691.27875751,0.00031796,2]
[421609787,1777954232000,-311.0,0.00031796,3]
[421609791,1777954232000,-4546.64124249,0.00031796,2]
[421609804,1777954232000,-500.0,0.00036977,30]
[421609794,1777954232000,-179.0,0.00031796,3]
[421609805,1777954232000,-500.0,0.00036977,30]
[421609796,1777954232000,-2464.0,0.00034409,2]
[421609795,1777954232000,-169.26,0.00034371,30]
[421609799,1777954232000,-222.41966423,0.00036405,3]
[421609802,1777954232000,-200.0,0.00036633,2]
[421609797,1777954232000,-928.0,0.00034409,2]
[421609800,1777954232000,-5000.0,0.00036552,2]
[421609798,1777954232000,-500.0,0.00034701,2]
[421609801,1777954232000,-1054.69,0.00036626,2]
[421609803,1777954232000,-2000.0,0.00036661,2]
[421609807,1777954232000,-500.0,0.00036977,30]
[421609808,1777954232000,-252.87235326,0.00037005,2]
[421609813,1777954232000,-500.0,0.00037108,15]
[421609843,1777954232000,-150.0,0.00038223,7]
[421609864,1777954232000,-150.0,0.00038669,7]
[421609844,1777954232000,-195.90789108,0.00038249,102]
[421609880,1777954232000,-156.15270631,0.00038942,120]
[421609875,1777954232000,-150.0,0.00038859,7]
[421609878,1777954232000,-150.0,0.00038918,7]
[421609876,1777954232000,-1100.0,0.000389,14]
[421609879,1777954232000,-150.0,0.00038941,7]
[421609882,1777954232000,-171.945,0.00038942,53]
[421609892,1777954232000,-158.42,0.00039103,2]